bitfinex/quotes_SOLUSD_20240811
["timestamp","ask_amount","ask_price","bid_price","bid_amount"]
[1723387787380,1.66871813,149.85,149.75,29.83]
[1723387787671,1.66871813,149.85,149.82,4.6722]
[1723387787858,29.83,149.86,149.75,31.00882185]
[1723387788058,47.25180382,149.88,149.84,4.6715]
[1723387788249,29.83,149.88,149.77,29.83]
[1723387788447,29.83,149.88,149.84,4.6714]
[1723387788670,31.49852654,149.88,149.79,6.2003]
[1723387789065,29.83,149.9,149.79,36.0303]
[1723387789246,1.6683115,149.89,149.86,4.6707]
[1723387789450,29.83,149.88,149.79,6.2003]
[1723387789649,29.83,149.86,149.84,4.6716]
[1723387790189,29.83,149.88,149.79,6.2003]
[1723387790354,1.6684007,149.87,149.79,6.2003]
[1723387790679,29.83,149.88,149.85,4.6712]
[1723387790877,29.83,149.88,149.86,4.671]
[1723387791279,1.66839947,149.87,149.79,6.2003]
[1723387792073,29.83,149.86,149.79,6.2003]
[1723387792278,4.6722,149.83,149.72,14.8755]
[1723387792460,4.6722,149.83,149.72,44.7055]
[1723387792663,4.6722,149.82,149.72,44.7055]
[1723387792854,4.672,149.83,149.72,44.7055]
[1723387793173,4.6723,149.82,149.72,44.7055]
[1723387793375,34.5023,149.82,149.72,14.8755]
[1723387793687,29.83,149.82,149.72,44.7055]
[1723387794092,6.3418556,149.81,149.72,14.8755]
[1723387794256,4.6729,149.8,149.72,14.8755]
[1723387794672,34.5025,149.82,149.72,14.8755]
[1723387794895,4.6726,149.81,149.72,14.8755]
[1723387795092,6.34202329,149.81,149.72,14.8755]
[1723387795293,1.66943214,149.8,149.72,14.8755]
[1723387795601,29.83,149.82,149.72,45.38589443]
[1723387795811,29.83,149.84,149.74,29.83]
[1723387795979,4.6714,149.85,149.74,29.83]
[1723387796178,6.34060702,149.84,149.74,29.83]
[1723387796678,36.17070702,149.84,149.72,44.2055]
[1723387796880,29.83,149.84,149.72,44.2055]
[1723387797075,20.0,149.85,149.74,29.83]
[1723387797281,1.66879679,149.85,149.76,29.83]
[1723387797702,4.6711,149.86,149.76,29.83]
[1723387798089,34.5004,149.88,149.76,29.83]
[1723387798394,34.5004,149.88,149.78,29.83]
[1723387798610,9.05688484,149.89,149.8,29.83]
[1723387798782,11.63514068,149.91,149.8,46.1752]
[1723387798978,4.6698,149.9,149.8,46.1752]
[1723387799308,15.12580622,149.92,149.82,29.83]
[1723387799608,1.66808984,149.91,149.82,29.83]
[1723387799774,4.67,149.9,149.8,46.1752]
[1723387799975,4.6708,149.87,149.8,16.3452]
[1723387800193,1.66857802,149.87,149.8,16.3452]
[1723387800873,1.66857342,149.86,149.76,29.83]
[1723387801077,29.83,149.88,149.76,29.83]
[1723387801383,34.5006,149.88,149.76,29.83]
[1723387801591,29.83,149.88,149.76,29.83]
[1723387802211,31.4986017,149.9,149.78,29.83]
[1723387802510,10.45670622,149.92,149.82,29.83]
[1723387802883,10.45670622,149.92,149.82,29.33]
[1723387803088,12.12468324,149.92,149.82,29.33]
[1723387803401,15.12580622,149.92,149.82,29.33]
[1723387803601,10.45670622,149.92,149.82,29.33]
[1723387803807,12.12453366,149.92,149.82,29.33]
[1723387804110,46.62373366,149.92,149.81,22.5455]
[1723387804516,41.95453366,149.92,149.81,22.5455]
[1723387804823,10.45670622,149.92,149.82,29.83]
[1723387805111,12.12463345,149.92,149.82,29.83]
[1723387805905,51.01151829,149.92,149.81,22.5455]
[1723387806098,20.0,149.91,149.81,22.5455]
[1723387806304,20.0,149.91,149.82,29.83]
[1723387806700,49.34359106,149.92,149.82,29.83]
[1723387806900,19.51359106,149.92,149.82,29.83]
[1723387807215,24.18269106,149.92,149.82,29.83]
[1723387807513,21.1815906,149.92,149.82,29.83]
[1723387807715,10.45670622,149.92,149.82,29.83]
[1723387808025,9.05688484,149.95,149.86,29.83]
[1723387808199,10.45486229,149.96,149.87,1.17600272]
[1723387808398,10.45486229,149.96,149.86,29.83]
[1723387808723,4.6673,149.98,149.88,29.83]
[1723387809313,17.41361356,149.99,149.88,29.83]
[1723387809518,43.55368484,150.0,149.9,29.83]
[1723387809519,4.6668,150.0,149.9,29.83]
[1723387809711,4.6664,150.01,149.9,31.00473064]
[1723387809914,11.62635945,150.01,149.9,31.00473064]
[1723387810216,11.62635945,150.01,149.9,29.83]
[1723387811109,6.95995945,150.01,149.92,29.33]
[1723387811490,6.95995945,150.01,149.94,29.83]
[1723387811698,1.66676038,150.0,149.94,29.83]
[1723387811900,6.95995945,150.01,149.92,29.83]
[1723387812099,1.66696255,150.0,149.92,29.83]
[1723387812293,6.95995945,150.01,149.92,29.83]
[1723387812694,1.66686826,150.0,149.9,29.83]
[1723387812913,29.83,149.98,149.89,22.3712]
[1723387813217,4.6685,149.94,149.89,22.3712]
[1723387813421,1.66775791,149.93,149.89,22.3712]
[1723387813717,1.66771816,149.92,149.89,6.2663]
[1723387813919,1.66771816,149.92,149.84,6.2663]
[1723387814094,6.33681816,149.92,149.84,6.2663]
[1723387814503,1.66771816,149.92,149.84,6.2663]
[1723387814723,34.4987,149.94,149.84,6.2663]
[1723387815295,29.83,149.94,149.84,6.2663]
[1723387815616,29.83,149.94,149.84,36.0963]
[1723387815839,1.66789074,149.93,149.84,6.2663]
[1723387816209,6.33669074,149.93,149.84,6.2663]
[1723387816625,1.66789074,149.93,149.84,6.2663]
[1723387817420,24.7229,149.98,149.84,36.0963]
[1723387817421,34.4981,149.96,149.84,36.0963]
[1723387817622,36.2173,149.98,149.88,29.83]
[1723387817917,20.0,149.97,149.88,29.83]
[1723387818131,21.667496,149.97,149.88,29.83]
[1723387818713,1.667496,149.97,149.88,29.83]
[1723387819225,21.667496,149.97,149.86,29.83]
[1723387819426,21.667496,149.97,149.84,6.2663]
[1723387819427,4.6682,149.95,149.84,36.0963]
[1723387819720,31.49769092,149.94,149.84,6.2663]
[1723387820110,36.16629092,149.94,149.84,6.2663]
[1723387820499,31.49769092,149.94,149.84,6.2663]
[1723387820723,4.6689,149.93,149.84,6.2663]
[1723387820913,34.4986,149.94,149.84,6.2663]
[1723387821106,1.66791916,149.93,149.84,6.2663]
[1723387821321,6.33671916,149.93,149.84,6.2663]
[1723387821808,29.83,149.94,149.84,36.0963]
[1723387822008,6.96323882,149.95,149.84,36.0963]
[1723387822209,6.96323882,149.95,149.86,29.83]
[1723387822411,24.6676,149.97,149.86,29.83]
[1723387822632,34.4973,149.98,149.86,29.83]
[1723387823119,29.83,149.96,149.86,29.83]
[1723387823338,29.83,149.96,149.84,6.2663]
[1723387823339,1.6677821,149.95,149.84,6.2663]
[1723387823504,6.3359821,149.95,149.84,6.2663]
[1723387823706,29.83,149.96,149.85,29.83]
[1723387823927,1.66765989,149.99,149.85,29.83]
[1723387823928,6.33485989,149.99,149.89,29.83]
[1723387824124,44.37105462,150.0,149.84,36.22179]
[1723387824125,31.49730325,149.98,149.87,29.83]
[1723387824321,51.49730325,149.98,149.87,29.83]
[1723387824533,21.66730325,149.98,149.87,29.83]
[1723387824735,36.7920809,150.0,149.89,29.83]
[1723387824928,6.9620809,150.0,149.91,29.83]
[1723387825127,6.9620809,150.0,149.92,6.2663]
[1723387825306,6.9620809,150.0,149.93,29.83]
[1723387825935,10.44893196,150.04,149.95,29.83]
[1723387826444,12.11560382,150.04,149.95,29.83]
[1723387826622,29.71888315,150.06,149.95,29.83]
[1723387826821,17.40571687,150.06,149.99,29.83]
[1723387827015,17.40571687,150.06,149.97,29.83]
[1723387827220,19.07218993,150.06,149.97,29.83]
[1723387827616,23.73698993,150.06,149.97,29.83]
[1723387827911,4.6651,150.05,149.97,29.83]
[1723387828112,47.23571687,150.06,149.92,6.2663]
[1723387828317,29.83,150.04,149.93,29.83]
[1723387828522,6.33264722,150.03,149.93,29.83]
[1723387828741,4.6658,150.03,149.93,29.83]
[1723387829310,22.0014,150.02,149.93,29.83]
[1723387829510,4.6669,150.0,149.92,6.2663]
[1723387830238,56.4975,150.02,149.92,6.2663]
[1723387830412,26.6675,150.02,149.92,6.2663]
[1723387830617,4.6667,150.0,149.92,6.2663]
[1723387831115,1.66722029,149.99,149.92,6.2663]
[1723387831312,1.66722029,149.99,149.89,29.83]
[1723387831548,24.6669,149.99,149.89,29.83]
[1723387831724,20.0,149.99,149.89,29.83]
[1723387832446,4.6664,150.01,149.89,29.83]
[1723387832741,1.66721108,150.0,149.91,29.83]
[1723387832923,4.6674,149.98,149.91,29.83]
[1723387833125,6.3347093,149.98,149.89,29.83]
[1723387833318,4.6672,149.99,149.88,6.3508]
[1723387833541,24.6672,149.99,149.89,29.83]
[1723387833722,20.0,149.99,149.89,29.83]
[1723387834233,1.66720874,149.98,149.89,29.83]
[1723387834635,4.6676,149.97,149.88,6.3508]
[1723387834833,6.33538889,149.96,149.88,6.3508]
[1723387835248,34.4973,149.98,149.88,7.52686783]
[1723387835421,4.6673,149.98,149.88,7.52686783]
[1723387835622,4.6664,150.01,149.89,29.83]
[1723387835944,4.6664,150.01,149.91,29.83]
[1723387836243,22.0014,150.02,149.93,29.83]
[1723387836617,28.33442708,150.02,149.93,29.83]
[1723387837056,22.0014,150.02,149.93,29.83]
[1723387837256,15.3544,150.02,149.93,29.83]
[1723387837756,1.66680064,150.01,149.93,29.83]
[1723387838424,49.03551241,150.04,149.93,29.83]
[1723387838622,6.96113869,150.04,149.95,29.83]
[1723387838821,6.96113869,150.04,149.97,29.83]
[1723387839039,6.96113869,150.04,149.96,6.3508]
[1723387840049,6.96113869,150.04,149.97,29.83]
[1723387841144,6.96113869,150.04,149.99,29.83]
[1723387841349,6.96113869,150.04,149.99,31.00291538]
[1723387841648,6.96113869,150.04,149.99,29.83]
[1723387841834,4.6644,150.08,149.99,29.83]
[1723387842422,287.5653,150.09,149.99,29.83]
[1723387842851,287.5653,150.09,150.0,1.17285256]
[1723387843244,26.6653,150.09,149.99,29.83]
[1723387843451,28.33138756,150.09,149.99,29.83]
[1723387844351,20.0,150.08,149.99,29.83]
[1723387844923,1.66608665,150.07,149.99,29.83]
[1723387845339,4.6646,150.07,149.99,29.83]
[1723387845546,49.83,150.08,149.97,29.83]
[1723387845861,4.6648,150.06,149.97,29.83]
[1723387846425,4.6645,150.07,149.97,29.83]
[1723387846625,4.6648,150.06,149.97,29.83]
[1723387847728,24.6648,150.06,149.97,29.83]
[1723387847927,1.66645036,150.05,149.97,29.83]
[1723387848343,1.66645036,150.05,149.96,6.3508]
[1723387848756,29.83,150.02,149.91,51.1012]
[1723387848925,1.66700163,150.01,149.91,51.1012]
[1723387849248,6.3174,150.0,149.89,29.83]
[1723387849552,4.6673,149.98,149.89,29.83]
[1723387849740,20.0,149.98,149.89,29.83]
[1723387850342,20.0,149.99,149.89,29.83]
[1723387850643,20.0,149.99,149.9,1.17494931]
[1723387851031,20.0,149.99,149.89,29.83]
[1723387851225,20.0,149.99,149.91,29.83]
[1723387851430,6.3174,150.0,149.91,29.83]
[1723387851835,15.7355,150.05,149.95,29.83]
[1723387852446,1.66654041,150.04,149.95,29.83]
[1723387853248,21.66654041,150.04,149.95,29.83]
[1723387853447,21.66654041,150.04,149.95,36.077]
[1723387854752,20.3998,150.08,149.99,29.83]
[1723387856344,20.0,150.07,149.99,29.83]
[1723387856862,21.66608103,150.07,149.99,29.83]
[1723387857036,21.66608103,150.07,149.97,29.83]
[1723387857239,4.6655,150.04,149.95,36.077]
[1723387857545,6.33253052,150.03,149.95,36.077]
[1723387858066,1.66658404,150.02,149.95,6.247]
[1723387858870,1.66658404,150.02,149.93,29.83]
[1723387859368,4.6668,150.0,149.91,36.077]
[1723387859573,1.66708564,149.99,149.91,36.077]
[1723387859743,21.66708564,149.99,149.91,36.077]
[1723387859945,15.7355,150.01,149.91,36.077]
[1723387860257,20.4008,150.05,149.95,29.83]
[1723387860575,20.0,150.04,149.95,29.83]
[1723387861359,15.7355,150.05,149.97,29.83]
[1723387861642,15.7355,150.05,149.98,1.17311756]
[1723387861842,34.4941,150.08,149.97,29.83]
[1723387862655,4.6645,150.07,149.97,29.83]
[1723387863357,1.66627532,150.06,149.97,29.83]
[1723387863572,29.83,150.04,149.93,29.83]
[1723387863744,21.6666984,150.03,149.93,29.83]
[1723387863942,24.6658,150.03,149.93,29.83]
[1723387864143,4.666,150.02,149.93,29.83]
[1723387864348,4.6663,150.01,149.93,29.83]
[1723387864553,1.66688099,150.0,149.93,29.83]
[1723387864764,26.33348099,150.0,149.92,15.0242]
[1723387865953,20.0,150.0,149.91,36.077]
[1723387866163,24.6664,150.01,149.91,36.077]
[1723387866472,21.66699951,150.01,149.91,36.077]
[1723387866873,26.33329951,150.01,149.91,36.077]
[1723387867278,20.0,150.01,149.91,36.077]
[1723387867873,26.33331247,150.01,149.91,36.077]
[1723387868169,4.6666,150.0,149.91,36.077]
[1723387868373,20.0,150.01,149.91,36.077]
[1723387868771,21.6670013,150.01,149.92,45.0]
[1723387868968,26.3334013,150.01,149.92,45.0]
[1723387869671,21.6670013,150.01,149.92,45.0]
[1723387870678,20.0,150.01,149.93,29.83]
[1723387871652,30.0,149.97,149.93,29.83]
[1723387872954,30.0,149.97,149.92,45.0]
[1723387873268,30.0,149.97,149.91,36.077]
[1723387873468,4.6669,150.0,149.91,36.077]
[1723387873675,4.6669,150.0,149.87,15.0242]
[1723387873676,1.66694976,149.99,149.89,29.83]
[1723387873980,4.6673,149.98,149.89,29.83]
[1723387874191,24.6673,149.98,149.89,29.83]
[1723387874355,6.33487231,149.97,149.89,29.83]
[1723387874761,24.6673,149.98,149.89,29.83]
[1723387874961,20.0,149.98,149.89,29.83]
[1723387875263,24.667,149.99,149.89,29.83]
[1723387876281,20.0,149.99,149.9,45.0]
[1723387876451,6.959968,150.01,149.92,0.12549]
[1723387876654,52.3338,150.06,149.95,44.9394]
[1723387876877,1.66660597,150.05,149.95,44.9394]
[1723387877058,1.66665772,150.04,149.95,44.9394]
[1723387877260,29.46216233,150.06,149.96,46.17357948]
[1723387877468,16.0131,150.06,149.96,46.17357948]
[1723387878292,43.60898349,150.08,149.97,29.83]
[1723387878453,6.9573241,150.08,149.99,29.83]
[1723387878657,6.9573241,150.08,149.99,31.00218257]
[1723387878857,27.1674,150.1,150.0,45.0]
[1723387879190,16.0131,150.1,150.01,36.3427]
[1723387879352,10.44360937,150.11,150.03,29.83]
[1723387879556,7.78076762,150.12,150.05,29.83]
[1723387879790,0.8246587,150.12,150.06,1.17100151]
[1723387880276,0.8246587,150.12,150.05,29.83]
[1723387880894,0.8246587,150.12,150.07,29.83]
[1723387881180,0.8246587,150.12,150.09,36.3427]
[1723387882257,0.8246587,150.12,150.09,6.5127]
[1723387882685,0.8246587,150.12,150.03,15.1094]
[1723387882686,0.8246587,150.12,150.04,6.5127]
[1723387882871,0.8246587,150.12,150.05,29.83]
[1723387883185,0.8246587,150.12,150.04,6.5127]
[1723387883572,20.8246587,150.12,150.04,6.5127]
[1723387883885,1.66564043,150.11,150.04,6.5127]
[1723387884258,20.8246587,150.12,150.04,6.5127]
[1723387884259,22.49029947,150.12,150.04,6.5127]
[1723387885382,1.66564256,150.11,150.04,6.5127]
[1723387886183,6.32914256,150.11,150.04,6.5127]
[1723387886369,20.0,150.1,150.01,29.83]
[1723387886573,1.66596607,150.09,150.01,29.83]
[1723387886880,4.6645,150.07,150.0,6.5127]
[1723387887091,20.0,150.07,150.0,6.5127]
[1723387887390,29.83,150.1,150.0,6.5127]
[1723387887564,20.0,150.09,150.0,6.5127]
[1723387888203,30.6546587,150.12,150.0,6.5127]
[1723387888204,5.4875587,150.12,150.01,29.83]
[1723387888361,20.0,150.11,150.01,74.83]
[1723387888557,29.83,150.1,150.0,6.5127]
[1723387888775,20.0,150.09,150.0,6.5127]
[1723387888977,1.66605626,150.08,150.0,6.5127]
[1723387889565,20.0,150.09,150.0,6.5127]
[1723387890067,4.6642,150.08,150.0,6.5127]
[1723387890275,20.0,150.09,150.0,6.5127]
[1723387891893,1.6660532,150.08,150.0,6.5127]
[1723387892677,20.0,150.09,150.0,6.5127]
[1723387892874,6.33009281,150.08,150.0,6.5127]
[1723387893082,1.66599281,150.08,150.0,6.5127]
[1723387893478,6.33019281,150.08,150.0,6.5127]
[1723387894001,24.6645,150.07,150.0,6.5127]
[1723387894291,4.6642,150.08,150.0,6.5127]
[1723387894492,24.6639,150.09,150.0,6.5127]
[1723387894885,26.33005493,150.09,150.0,6.5127]
[1723387895766,20.0,150.09,150.0,36.3427]
[1723387895968,6.95999953,150.1,150.02,29.83]
[1723387896284,4.6632,150.11,150.02,29.83]
[1723387896481,0.8246587,150.12,150.03,1.1718474]
[1723387896687,0.8246587,150.12,150.02,29.83]
[1723387897419,25.4876587,150.12,150.03,45.0]
[1723387897703,1.66570654,150.11,150.03,45.0]
[1723387898080,22.49033624,150.12,150.03,45.0]
[1723387899499,22.49033624,150.12,150.02,29.83]
[1723387899712,27.15323624,150.12,150.02,29.83]
[1723387900211,27.15323624,150.12,150.0,36.3427]
[1723387900212,4.6636,150.1,150.0,36.3427]
[1723387900385,6.32958627,150.1,150.0,36.3427]
[1723387900588,1.66598627,150.1,150.0,36.3427]
[1723387900895,29.83,150.1,150.0,36.3427]
[1723387901092,26.32992365,150.09,150.0,36.3427]
[1723387901412,20.0,150.09,150.0,36.3427]
[1723387901598,24.6638,150.09,150.0,36.3427]
[1723387901912,1.66613559,150.08,150.0,36.3427]
[1723387902409,20.0,150.09,150.0,36.3427]
[1723387902908,21.66612683,150.09,150.0,36.3427]
[1723387903113,20.0,150.09,150.0,36.3427]
[1723387903299,21.6661283,150.09,150.0,36.3427]
[1723387903701,4.6641,150.08,150.0,36.3427]
[1723387904016,6.33076925,150.07,150.0,6.5127]
[1723387904819,34.4942,150.08,150.0,6.5127]
[1723387905113,20.0,150.09,150.0,36.3427]
[1723387905512,1.66597378,150.08,150.0,36.3427]
[1723387905713,0.8246587,150.12,150.02,29.83]
[1723387906012,0.8246587,150.12,150.03,1.1716349]
[1723387906207,0.8246587,150.12,150.03,46.1716349]
[1723387906403,4.6638,150.1,150.02,29.83]
[1723387906585,4.6642,150.08,150.0,6.5127]
[1723387906791,1.66616426,150.07,150.0,6.5127]
[1723387907109,4.6639,150.09,150.0,6.5127]
[1723387907294,1.66609875,150.08,150.0,6.5127]
[1723387907494,20.0,150.08,150.0,6.5127]
[1723387907702,26.33018399,150.08,150.0,6.5127]
[1723387907908,6.33070836,150.07,150.0,6.5127]
[1723387908216,20.0,150.06,150.0,6.5127]
[1723387908414,20.0,150.08,150.0,36.3427]
[1723387909009,20.0,150.09,150.0,36.3427]
[1723387909401,24.6638,150.09,150.0,36.3427]
[1723387909723,4.6647,150.07,150.0,6.5127]
[1723387909895,16.4749,150.05,149.93,6.6162]
[1723387910097,4.6661,150.02,149.93,6.6162]
[1723387910392,1.66683875,150.01,149.93,6.6162]
[1723387910598,6.33323875,150.01,149.93,6.6162]
[1723387910813,24.6667,150.0,149.93,6.6162]
[1723387911013,31.49711052,149.99,149.88,52.4481]
[1723387911218,1.66739984,149.98,149.88,22.6181]
[1723387911420,4.6673,149.98,149.88,22.6181]
[1723387911697,26.33474434,149.98,149.88,22.6181]
[1723387911913,24.6673,149.98,149.88,22.6181]
[1723387912214,26.33470547,149.98,149.88,22.6181]
[1723387912804,29.83,149.97,149.88,22.6181]
[1723387912997,1.66760997,149.96,149.88,22.6181]
[1723387913201,1.66765251,149.95,149.88,22.6181]
[1723387913401,6.33585251,149.95,149.88,22.6181]
[1723387913601,20.0,149.94,149.88,22.6181]
[1723387913822,1.66766393,149.93,149.88,22.6181]
[1723387914022,1.66766393,149.92,149.88,22.6181]
[1723387914223,1.66777635,149.93,149.88,22.6181]
[1723387914603,20.0,149.94,149.88,22.6181]
[1723387914803,24.6679,149.96,149.88,22.6181]
[1723387915205,1.66754264,149.95,149.88,22.6181]
[1723387915399,21.66754264,149.95,149.88,22.6181]
[1723387915600,26.33584264,149.95,149.88,22.6181]
[1723387915801,51.49754264,149.95,149.88,6.6162]
[1723387916025,0.12549,149.94,149.88,6.6162]
[1723387916201,4.79409,149.94,149.88,6.6162]
[1723387916396,4.6688,149.93,149.84,52.4481]
[1723387916597,51.49786953,149.93,149.84,22.6181]
[1723387916819,4.6695,149.91,149.84,22.6181]
[1723387917015,1.66813437,149.9,149.84,22.6181]
[1723387917210,20.0,149.92,149.84,22.6181]
[1723387917418,26.95938902,149.92,149.84,22.6181]
[1723387917896,1.66790391,149.91,149.84,22.6181]
[1723387918121,26.95938902,149.92,149.84,22.6181]
[1723387918317,1.66793931,149.91,149.84,22.6181]
[1723387918502,6.33763931,149.91,149.84,22.6181]
[1723387918711,20.0,149.9,149.84,22.6181]
[1723387918923,4.6687,149.94,149.84,52.4481]
[1723387919135,20.0,149.94,149.86,29.83]
[1723387919309,26.95691331,149.94,149.86,29.83]
[1723387919709,24.6686,149.94,149.86,29.83]
[1723387919928,20.0,149.94,149.86,29.83]
[1723387920909,24.6685,149.94,149.86,29.83]
[1723387921110,4.6697,149.91,149.84,22.6181]
[1723387921338,21.66817862,149.91,149.84,22.6181]
[1723387921628,20.0,149.91,149.84,52.4481]
[1723387921827,24.6688,149.93,149.84,52.4481]
[1723387922030,4.6691,149.92,149.84,52.4481]
[1723387922234,4.6698,149.9,149.84,22.6181]
[1723387922730,1.66815562,149.89,149.84,22.6181]
[1723387922934,21.66814319,149.9,149.84,22.6181]
[1723387923109,20.0,149.9,149.84,22.6181]
[1723387923637,20.0,149.93,149.84,52.4481]
[1723387923811,1.66777679,149.93,149.84,52.4481]
[1723387924008,6.33667679,149.93,149.84,52.4481]
[1723387924232,11.62532597,149.95,149.84,52.4481]
[1723387924407,6.95682597,149.95,149.86,29.83]
[1723387924608,6.95682597,149.95,149.84,22.6181]
[1723387924828,4.6689,149.93,149.85,29.83]
[1723387925037,4.6686,149.94,149.85,29.83]
[1723387925335,31.49792639,149.94,149.84,22.6181]
[1723387925630,4.6693,149.92,149.84,22.6181]
[1723387925803,1.66808018,149.91,149.84,22.6181]
[1723387926009,6.33748018,149.91,149.84,22.6181]
[1723387926734,20.0,149.9,149.84,22.6181]
[1723387927637,21.66808088,149.91,149.84,22.6181]
[1723387928534,26.33768088,149.91,149.84,22.6181]
[1723387928709,26.33758088,149.91,149.84,22.6181]
[1723387929135,21.66808088,149.91,149.84,22.6181]
[1723387929631,26.33748088,149.91,149.84,22.6181]
[1723387930318,21.66808088,149.91,149.84,22.6181]
[1723387930520,20.0,149.91,149.84,22.6181]
[1723387930726,6.95823679,149.92,149.85,29.83]
[1723387931031,31.49776121,149.96,149.85,29.83]
[1723387931237,4.6688,149.93,149.85,29.83]
[1723387931416,1.66811914,149.92,149.85,29.83]
[1723387931621,4.669,149.93,149.85,29.83]
[1723387931813,6.95749189,149.94,149.87,29.83]
[1723387932030,18.49185939,149.96,149.84,22.6181]
[1723387932231,4.6694,149.91,149.84,22.6181]
[1723387932539,4.6698,149.9,149.84,22.6181]
[1723387932731,4.6695,149.91,149.84,22.6181]
[1723387932932,4.6692,149.92,149.84,22.6181]
[1723387933415,24.6688,149.93,149.84,52.4481]
[1723387933735,20.0,149.93,149.86,29.83]
[1723387934327,4.6676,149.97,149.88,29.83]
[1723387934638,6.9591226,149.96,149.88,29.83]
[1723387934820,4.6687,149.94,149.88,29.83]
[1723387935014,1.66751022,149.95,149.86,29.83]
[1723387935335,4.6685,149.94,149.86,29.83]
[1723387935530,6.33638771,149.94,149.86,29.83]
[1723387935914,4.6685,149.94,149.86,29.83]
[1723387936116,21.66788683,149.95,149.86,29.83]
[1723387936315,20.0,149.95,149.86,29.83]
[1723387936531,21.66760363,149.95,149.86,29.83]
[1723387936714,20.0,149.95,149.86,29.83]
[1723387936915,4.6694,149.92,149.84,52.4481]
[1723387937115,6.33747914,149.92,149.84,52.4481]
[1723387938138,4.6694,149.92,149.84,52.4481]
[1723387939034,30.0,149.88,149.84,52.4481]
[1723387939539,30.0,149.88,149.86,29.83]
[1723387939913,30.0,149.88,149.84,52.4481]
[1723387940125,20.0,149.93,149.84,52.4481]
[1723387940325,1.66787155,149.92,149.84,52.4481]
[1723387940520,20.0,149.93,149.84,52.4481]
[1723387940721,6.9591226,149.96,149.86,29.83]
[1723387940722,26.33625976,149.95,149.86,29.83]
[1723387940966,1.66772949,149.94,149.86,29.83]
[1723387941122,20.0,149.95,149.86,29.83]
[1723387941447,20.0,149.95,149.88,29.83]
[1723387941636,24.6679,149.96,149.88,29.83]
[1723387942234,6.33581268,149.95,149.86,29.83]
[1723387942415,24.6685,149.94,149.84,22.6181]
[1723387942738,26.33686806,149.93,149.85,29.83]
[1723387942951,1.66786891,149.92,149.85,29.83]
[1723387943120,4.669,149.93,149.85,29.83]
[1723387943320,20.0,149.92,149.85,29.83]
[1723387943850,4.6691,149.92,149.84,22.6181]
[1723387944020,4.6694,149.91,149.84,52.4481]
[1723387944221,1.66808383,149.9,149.84,22.6181]
[1723387944523,1.66819835,149.89,149.84,6.6162]
[1723387945559,21.66819835,149.89,149.84,6.6162]
[1723387946267,21.66819835,149.89,149.81,29.83]
[1723387946439,6.33829835,149.89,149.81,29.83]
[1723387946631,20.0,149.88,149.81,29.83]
[1723387946833,21.66845756,149.88,149.81,29.83]
[1723387947140,20.0,149.88,149.81,29.83]
[1723387947342,4.6695,149.91,149.81,29.83]
[1723387947343,20.0,149.89,149.81,29.83]
[1723387947538,26.33852691,149.89,149.81,29.83]
[1723387947853,20.0,149.89,149.83,29.83]
[1723387948158,20.0,149.91,149.83,29.83]
[1723387948538,1.66818644,149.9,149.83,29.83]
[1723387949061,1.66822285,149.9,149.83,29.83]
[1723387949237,1.6682289,149.89,149.83,29.83]
[1723387949437,21.6682289,149.89,149.83,29.83]
[1723387949754,1.6682289,149.88,149.8,22.5433]